Workbook

Sheet 首页
C7: 项目名称
C8: 项目估算表
B14: 版本 | C14: 作者 | D14: 状态 | E14: 日期 | F14: 备注
B15: V0.1 | C15: 孙高峰 | D15: 初始化 | E15: 2010-09-25
B16: V1.0 | C16: EPG | D16: 评审通过 | E16: 2011-01-28 | F16: 评审通过
B17: V1.1 | C17: 韦丹丹 | D17: 修改 | E17: 2012-06-11 | F17: 修改了“工作量构成表”的比例，定义了界面的难易度，修改了估算表的计算公式。
B18: V2.0 | C18: 项目经理及公司高层 | D18: 评审通过 | E18: 2012-06-11 | F18: 评审通过
B19: V2.1 | C19: 韦丹丹 | D19: 修改 | E19: 2013-11-06 | F19: 修改了此估算表中的一个BUG，把代码、单元测试和结合测试工作量分开进行评估。
B20: V3.0 | C20: 项目经理及公司高层 | D20: 评审通过 | E20: 2013-11-26 | F20: 评审通过
B21: V3.1 | C21: 赵燕、王菲菲 | D21: 修改 | E21: 2014-05-12 | F21: 增加给销售的模板（Sheet估算表（销售）），工作量构成、功能难易系数进行调整
B22: V4.0 | C22: 项目经理及公司高层 | D22: 评审通过 | E22: 2014-06-10 | F22: 评审通过
B23: V4.1 | C23: 李炳海 | D23: 修改 | E23: 2014-06-13 | F23: 修改了第二个SHEET页“估算表”中的内容（增加了评估原则和参考标准），对SHEET“估算表（销售）”增加了注意事项。
B24: V5.0 | C24: 项目经理及公司高层 | D24: 评审通过 | E24: 2014-06-20 | F24: 评审通过

Sheet 估算表
B1: 估算表
B3: 编号 | C3: 功能名称 | D3: 子功能名称(页面、处理、模块等) | E3: 功能难易度 | F3: 项目管理 | G3: 需求 详细调研 | H3: 基本设计 详细设计 | I3: 编码 单元测试 | J3: 结合测试 | K3: 现场实施 | L3: 合 计 | M3: 备注
B4: 1 | C4: 轴承型号及产品编号设置 | D4: 轴承型号及产品编号设置 | E4: 三级 | F4: =VLOOKUP($E4,功能难易系数!$C$5:$D$12,2,)/0.4*工作量构成表!$D$6/100 -> 0.5 | G4: =VLOOKUP($E4,功能难易系数!$C$5:$D$12,2,)/0.4*工作量构成表!$D$7/100 -> 0.3 | H4: =VLOOKUP($E4,功能难易系数!$C$5:$D$12,2,)/0.4*工作量构成表!$D$8/100 -> 0.8 | I4: =VLOOKUP(E4,功能难易系数!C$5:D$12,2,) -> 2 | J4: =VLOOKUP($E4,功能难易系数!$C$5:$D$12,2,)/0.4*工作量构成表!$D$10/100 -> 0.9 | K4: =VLOOKUP($E4,功能难易系数!$C$5:$D$12,2,)/0.4*工作量构成表!$D$11/100 -> 0.5 | L4: =SUM(F4:K4) -> 5
B5: 2 | C5: 装配新建数据 | D5: 装配新建数据 | E5: 三级 | F5: =VLOOKUP($E5,功能难易系数!$C$5:$D$12,2,)/0.4*工作量构成表!$D$6/100 -> 0.5 | G5: =VLOOKUP($E5,功能难易系数!$C$5:$D$12,2,)/0.4*工作量构成表!$D$7/100 -> 0.3 | H5: =VLOOKUP($E5,功能难易系数!$C$5:$D$12,2,)/0.4*工作量构成表!$D$8/100 -> 0.8 | I5: =VLOOKUP(E5,功能难易系数!C$5:D$12,2,) -> 2 | J5: =VLOOKUP($E5,功能难易系数!$C$5:$D$12,2,)/0.4*工作量构成表!$D$10/100 -> 0.9 | K5: =VLOOKUP($E5,功能难易系数!$C$5:$D$12,2,)/0.4*工作量构成表!$D$11/100 -> 0.5 | L5: =SUM(F5:K5) -> 5
B6: 3 | C6: 测量数据录入 | D6: 测量数据录入 | E6: 二级 | F6: =VLOOKUP($E6,功能难易系数!$C$5:$D$12,2,)/0.4*工作量构成表!$D$6/100 -> 0.25 | G6: =VLOOKUP($E6,功能难易系数!$C$5:$D$12,2,)/0.4*工作量构成表!$D$7/100 -> 0.15 | H6: =VLOOKUP($E6,功能难易系数!$C$5:$D$12,2,)/0.4*工作量构成表!$D$8/100 -> 0.4 | I6: =VLOOKUP(E6,功能难易系数!C$5:D$12,2,) -> 1 | J6: =VLOOKUP($E6,功能难易系数!$C$5:$D$12,2,)/0.4*工作量构成表!$D$10/100 -> 0.45 | K6: =VLOOKUP($E6,功能难易系数!$C$5:$D$12,2,)/0.4*工作量构成表!$D$11/100 -> 0.25 | L6: =SUM(F6:K6) -> 2.5
B7: 4 | C7: 称重获取判断 | D7: 称重获取判断 | E7: 三级 | F7: =VLOOKUP($E7,功能难易系数!$C$5:$D$12,2,)/0.4*工作量构成表!$D$6/100 -> 0.5 | G7: =VLOOKUP($E7,功能难易系数!$C$5:$D$12,2,)/0.4*工作量构成表!$D$7/100 -> 0.3 | H7: =VLOOKUP($E7,功能难易系数!$C$5:$D$12,2,)/0.4*工作量构成表!$D$8/100 -> 0.8 | I7: =VLOOKUP(E7,功能难易系数!C$5:D$12,2,) -> 2 | J7: =VLOOKUP($E7,功能难易系数!$C$5:$D$12,2,)/0.4*工作量构成表!$D$10/100 -> 0.9 | K7: =VLOOKUP($E7,功能难易系数!$C$5:$D$12,2,)/0.4*工作量构成表!$D$11/100 -> 0.5 | L7: 5
B8: 5 | C8: 数据导出 | D8: 数据导出 | E8: 二级 | F8: =VLOOKUP($E8,功能难易系数!$C$5:$D$12,2,)/0.4*工作量构成表!$D$6/100 -> 0.25 | G8: =VLOOKUP($E8,功能难易系数!$C$5:$D$12,2,)/0.4*工作量构成表!$D$7/100 -> 0.15 | H8: =VLOOKUP($E8,功能难易系数!$C$5:$D$12,2,)/0.4*工作量构成表!$D$8/100 -> 0.4 | I8: =VLOOKUP(E8,功能难易系数!C$5:D$12,2,) -> 1 | J8: =VLOOKUP($E8,功能难易系数!$C$5:$D$12,2,)/0.4*工作量构成表!$D$10/100 -> 0.45 | K8: =VLOOKUP($E8,功能难易系数!$C$5:$D$12,2,)/0.4*工作量构成表!$D$11/100 -> 0.25 | L8: =SUM(F8:K8) -> 2.5
B9: 6 | C9: 装配数据查询及标签补打 | D9: 装配数据查询及标签补打 | E9: 三级 | F9: =VLOOKUP($E9,功能难易系数!$C$5:$D$12,2,)/0.4*工作量构成表!$D$6/100 -> 0.5 | G9: =VLOOKUP($E9,功能难易系数!$C$5:$D$12,2,)/0.4*工作量构成表!$D$7/100 -> 0.3 | H9: =VLOOKUP($E9,功能难易系数!$C$5:$D$12,2,)/0.4*工作量构成表!$D$8/100 -> 0.8 | I9: =VLOOKUP(E9,功能难易系数!C$5:D$12,2,) -> 2 | J9: =VLOOKUP($E9,功能难易系数!$C$5:$D$12,2,)/0.4*工作量构成表!$D$10/100 -> 0.9 | K9: =VLOOKUP($E9,功能难易系数!$C$5:$D$12,2,)/0.4*工作量构成表!$D$11/100 -> 0.5 | L9: 5
B10: 合计 | F10: =SUM(F4:F9) -> 2.5 | G10: 1.5 | H10: 4 | I10: 10 | J10: 4.5 | K10: 2.5 | L10: =SUM(F10:K10) -> 25
B14: 一、评估原则
B15: 1、用户管理、权限管理不需要进行评估；
B16: 2、每个模块的级别建议不超过6级，如果工作量较大，需进行拆分。
B18: 二、参考标准：
B19: 系统配置模块 | E19: 一级
B20: 简单基础数据模块 | E20: 一级
B21: 复杂基础数据模块 | E21: 二级
B22: 普通统计查询模块 | E22: 二级
B23: 简单报表模块（有打印或导出） | E23: 三级
B24: 中等报表模块（有打印或导出） | E24: 四级
B25: 复杂等报表模块（有打印或导出） | E25: 六级
B26: 简单手持/车载界面 | E26: 二级
B27: 中等手持/车载界面 | E27: 三级

Sheet 工作量构成表
B2: 工作量构成表
B3: 序号 | C3: 工作内容 | D3: 工作量分配 | E3: 说明
D4: (%)
B5: 1 | C5: 方案、报价 | E5: 此项数据因是立项之前产生的工作量，所以不在工作量构成表中体现，需要报价单中体现。一般中等规模的项目需要10人*天。
B6: 2 | C6: 项目管理 | D6: 10
B7: 3 | C7: 需求详细调研 | D7: 6
B8: 4 | C8: 基本设计 详细设计 | D8: 16
B9: 5 | C9: 编码、单元测试 | D9: 40
B10: 6 | C10: 结合测试 | D10: 18
B11: 7 | C11: 现场实施 | D11: 10
B12: 8 | C12: 试运行 验收 | E12: 一般小、中等规模的项目试运行需要20人*天工作量
B13: 合计 | D13: =SUM(D6:D11) -> 100
C15: 注: 根据项目类型，酌情调整。各工作内容的工作量构成在0和100之间，但
C16: 合计必须为100

Sheet 功能难易系数
B2: 功能难易系数
B3: 序号 | C3: 功能难易度 | D3: 工作量 | E3: 说明
D4: 人天/每页面
B5: 1 | C5: 一级 | D5: 0.5
B6: 2 | C6: 二级 | D6: 1
B7: 3 | C7: 三级 | D7: 2
B8: 4 | C8: 四级 | D8: 3
B9: 5 | C9: 五级 | D9: 4
B10: 6 | C10: 六级 | D10: 5
B11: 7 | C11: 七级 | D11: 10
B12: 8 | C12: 八级 | D12: 15

Sheet 估算表（销售）
B2: 估算表（销售）
B4: 编号 | C4: 功能名称 | D4: 子功能名称(页面、处理、模块等) | E4: 工作量(人/天)
B5: 1 | D5: 轴承型号及产品编号设置 | E5: 3
B6: 2 | D6: 装配新建数据 | E6: 3
B7: 3 | D7: 测量数据录入 | E7: 1.5
B8: 4 | D8: 称重获取判断 | E8: 3
B9: 5 | D9: 数据导出 | E9: 1.5
B10: 6 | D10: 装配数据查询及标签补打 | E10: 3
B11: 合计 | E11: =SUM(E5:E10) -> 15
B13: 注：以上细化的功能点只包含需求详细调研、基本设计+详细设计、编码+单元测试的阶段。
C15: 阶段 | D15: 工作量(人/天)
C16: 项目管理 | D16: 2.5
C17: 需求详细调研 | D17: 1.5
C18: 基本设计+详细设计 | D18: 4
C19: 编码+单元测试 | D19: 10
C20: 结合测试 | D20: 4.5
C21: 现场实施 | D21: 2.5
C22: 试运行 | D22: 20
C24: 合计 | D24: =ROUND(SUM(D16:D23),0) -> 45
C25: 合计+Buffer(10%) | D25: =ROUND(D24+D24*10%,0) -> 50
